[Event "WWRR B-Group 2024"]
[Site "Wachtebeke"]
[Date "2024.02.15"]
[Round "9.3"]
[White "Dreelinck, Jacob"]
[Black "Nemegeer, Arne"]
[Result "1/2-1/2"]
[ECO "B82"]
[WhiteElo "2196"]
[BlackElo "2100"]
[Annotator "NA RC"]
[PlyCount "67"]
[EventDate "2024.02.12"]
[EventType "tourn"]
[EventCountry "BEL"]
[SourceTitle "playchess.com"]
[Source "ChessBase"]
[SourceQuality "1"]
[TimeControl "40/5400+30:900+30"]

1. e4 {[%emt 0:00:02]} c5 {[%emt 0:00:03]} 2. Nf3 {[%emt 0:00:04]} d6 {[%emt 0:00:02]} 3. d4 {[%emt 0:00:06]} cxd4 {[%emt 0:00:07]} 4. Nxd4 {[%emt 0:00:05]} Nf6 {[%emt 0:00:04]} 5. Nc3 {[%emt 0:00:03]} Nc6 {[%emt 0:00:05]} 6. Bc4 {[%emt 0:00:14]} Qb6 {[%emt 0:00:04]} 7. Nb3 {[%emt 0:00:04]} e6 {[%emt 0:00:05]} 8. Be3 {[%emt 0:00:31]} Qc7 {[%emt 0:00:06]} 9. f4 {[%emt 0:00:23]} a6 {[%emt 0:00:24]} 10. Bd3 {[%emt 0:00:04]} b5 {[%emt 0:02:10]} 11. g4 {[%emt 0:00:03]} Bb7 {[%emt 0:01:59]} 12. Qe2 {[%emt 0:03:44]} Be7 {[%emt 0:06:06]} 13. Bf2 {[%emt 0:10:49]} Rc8 {[%emt 0:06:25]} 14. Rd1 {[%emt 0:03:04]} Nb4 {[%emt 0:08:56]} 15. g5 {[%emt 0:07:18]} Nxd3+ {[%emt 0:03:47]} 16. cxd3 {[%emt 0:01:12]} Nd7 {[%emt 0:00:05]} 17. Nd4 {[%emt 0:05:22]} g6 {[%emt 0:08:50]} 18. Nf3 {[%emt 0:12:56]} b4 {[%emt 0:10:15]} 19. Nb1 {[%emt 0:00:39]} d5 {[%emt 0:01:41]} 20. e5 {[%emt 0:03:19]} Qc2 {[%emt 0:01:14]} 21. Nd4 {[%emt 0:02:01]} Qxe2+ {[%emt 0:00:23]} 22. Kxe2 {[%emt 0:00:11]} Nc5 {[%emt 0:01:36]} 23. Nd2 {[%emt 0:09:22]} Kd7 {[%emt 0:02:37]} 24. N2b3 {[%emt 0:01:32]} Na4 {[%emt 0:02:03]} 25. Rb1 {[%emt 0:03:07]} h6 {[%emt 0:01:31]} 26. h4 {[%emt 0:01:08]} h5 {[%emt 0:06:51]} 27. Be1 {[%emt 0:05:48]} Rc7 {[%emt 0:04:34]} 28. Rh2 {[%emt 0:02:30]} Rhc8 {[%emt 0:00:06]} 29. Kd1 {[%emt 0:00:15]} Nc5 {[%emt 0:01:44]} 30. Rd2 {[%emt 0:03:31]} Bc6 {[%emt 0:02:18]} 31. Nxc5+ {[%emt 0:06:25]} Bxc5 {[%emt 0:00:09]} 32. Bf2 {[%emt 0:00:08]} Ba4+ {[%emt 0:05:28]} 33. b3 {[%emt 0:00:46]} Bb5 {[%emt 0:00:35]} 34. Ra1 {[%emt 0:07:03]} 1/2-1/2

[Event "WWRR B-Group 2024"]
[Site "Wachtebeke"]
[Date "2024.02.15"]
[Round "9.4"]
[White "Kurt, Sascha"]
[Black "Verduyn, Frederic"]
[Result "1-0"]
[ECO "B06"]
[WhiteElo "2002"]
[BlackElo "2087"]
[Annotator "NA RC"]
[PlyCount "73"]
[EventDate "2024.02.12"]
[EventType "tourn"]
[EventCountry "BEL"]
[SourceTitle "playchess.com"]
[Source "ChessBase"]
[SourceQuality "1"]
[TimeControl "40/5400+30:900+30"]

1. e4 {[%emt 0:00:03]} g6 {[%emt 0:00:25]} 2. d4 {[%emt 0:00:05]} Bg7 {[%emt 0:00:15]} 3. Nc3 {[%emt 0:00:05]} d6 {[%emt 0:00:31]} 4. Be3 {[%emt 0:00:07]} a6 {[%emt 0:01:05]} 5. Qd2 {[%emt 0:00:23]} b5 {[%emt 0:01:14]} 6. O-O-O {[%emt 0:01:32]} Bb7 {[%emt 0:01:10]} 7. f3 {[%emt 0:00:45]} Nd7 {[%emt 0:01:09]} 8. h4 {[%emt 0:06:11]} h6 {[%emt 0:03:17]} 9. Bd3 {[%emt 0:05:21]} Rc8 {[%emt 0:01:43]} 10. d5 {[%emt 0:01:34]} c5 {[%emt 0:04:06]} 11. dxc6 {[%emt 0:00:23]} Bxc6 {[%emt 0:00:59]} 12. Nd5 {[%emt 0:05:05]} Bxd5 {[%emt 0:06:58]} 13. exd5 {[%emt 0:00:13]} Nc5 {[%emt 0:04:11]} 14. Ne2 {[%emt 0:07:19]} Nf6 {[%emt 0:03:28]} 15. Bd4 {[%emt 0:01:31]} Nxd3+ {[%emt 0:08:04]} 16. Qxd3 {[%emt 0:00:11]} Qa5 {[%emt 0:02:13]} 17. Kb1 {[%emt 0:02:15]} O-O {[%emt 0:02:55]} 18. h5 {[%emt 0:24:57]} g5 {[%emt 0:06:26]} 19. Ng3 {[%emt 0:05:26]} e6 {[%emt 0:12:33]} 20. dxe6 {[%emt 0:07:01]} fxe6 {[%emt 0:00:10]} 21. Qg6 {[%emt 0:12:28]} Rc4 {[%emt 0:08:23]} 22. Bxf6 {[%emt 0:05:25]} Rxf6 {[%emt 0:00:20]} 23. Qe8+ {[%emt 0:00:04]} Kh7 {[%emt 0:04:45]} 24. Rxd6 {[%emt 0:01:25]} Qb4 {[%emt 0:13:26]} 25. Rd8 {[%emt 0:00:57]} Rf8 {[%emt 0:00:56]} 26. Qg6+ {[%emt 0:00:12]} Kh8 {[%emt 0:00:21]} 27. Rxf8+ {[%emt 0:00:31]} Qxf8 {[%emt 0:00:11]} 28. Rd1 {[%emt 0:01:14]} Qc8 {[%emt 0:05:38]} 29. Ne4 {[%emt 0:01:26]} Qf8 {[%emt 0:02:43]} 30. Nd6 {[%emt 0:01:03]} Rf4 {[%emt 0:01:23]} 31. Qxe6 {[%emt 0:03:19]} Rb4 {[%emt 0:01:42]} 32. Nf7+ {[%emt 0:00:41]} Kh7 {[%emt 0:00:26]} 33. Qg6+ {[%emt 0:00:15]} Kg8 {[%emt 0:00:11]} 34. Nxh6+ {[%emt 0:00:21]} Kh8 {[%emt 0:00:05]} 35. Nf7+ {[%emt 0:00:12]} Kg8 {[%emt 0:00:23]} 36. Rd8 {[%emt 0:00:25]} Rxb2+ {[%emt 0:00:56]} 37. Kc1 {[%emt 0:00:08]} 1-0

[Event "WWRR B-Group 2024"]
[Site "Wachtebeke"]
[Date "2024.02.15"]
[Round "9.5"]
[White "Dreelinck, Adriaan"]
[Black "Ruzhansky, Elias"]
[Result "1-0"]
[ECO "E04"]
[WhiteElo "2205"]
[BlackElo "2133"]
[Annotator "NA RC"]
[PlyCount "95"]
[EventDate "2024.02.12"]
[EventType "tourn"]
[EventCountry "BEL"]
[SourceTitle "playchess.com"]
[Source "ChessBase"]
[SourceQuality "1"]
[TimeControl "40/5400+30:900+30"]

1. d4 {[%emt 0:00:02]} d5 {[%emt 0:19:31]} 2. c4 {[%emt 0:00:08]} e6 {[%emt 0:00:03]} 3. Nf3 {[%emt 0:00:09]} Nf6 {[%emt 0:00:05]} 4. g3 {[%emt 0:00:06]} dxc4 {[%emt 0:00:19]} 5. Bg2 {[%emt 0:00:08]} Nc6 {[%emt 0:01:05]} 6. Qa4 {[%emt 0:00:13]} Bb4+ {[%emt 0:00:05]} 7. Bd2 {[%emt 0:00:07]} Nd5 {[%emt 0:00:03]} 8. Bxb4 {[%emt 0:00:15]} Ndxb4 {[%emt 0:00:06]} 9. O-O {[%emt 0:00:09]} Rb8 {[%emt 0:02:35]} 10. Nc3 {[%emt 0:00:12]} a6 {[%emt 0:01:59]} 11. Ne5 {[%emt 0:00:22]} O-O {[%emt 0:00:37]} 12. Nxc6 {[%emt 0:00:18]} Nxc6 {[%emt 0:00:11]} 13. Bxc6 {[%emt 0:00:08]} bxc6 {[%emt 0:00:02]} 14. Qxc4 {[%emt 0:00:11]} Rxb2 {[%emt 0:02:55]} 15. Rab1 {[%emt 0:00:12]} Rxb1 {[%emt 0:01:04]} 16. Rxb1 {[%emt 0:00:08]} Qd6 {[%emt 0:00:38]} 17. Ne4 {[%emt 0:03:18]} Qd5 {[%emt 0:01:04]} 18. Qxd5 {[%emt 0:00:24]} cxd5 {[%emt 0:00:19]} 19. Nc5 {[%emt 0:00:10]} f6 {[%emt 0:00:54]} 20. f4 {[%emt 0:07:46]} Kf7 {[%emt 0:00:58]} 21. Rb8 {[%emt 0:09:32]} Ke7 {[%emt 0:00:50]} 22. Ra8 {[%emt 0:08:00]} g5 {[%emt 0:17:57]} 23. a4 {[%emt 0:08:57]} h5 {[%emt 0:00:46]} 24. h4 {[%emt 0:12:18]} gxf4 {[%emt 0:01:14]} 25. gxf4 {[%emt 0:00:17]} a5 {[%emt 0:05:48]} 26. e3 {[%emt 0:09:44]} Kd6 {[%emt 0:06:09]} 27. Rxa5 {[%emt 0:03:51]} e5 {[%emt 0:00:16]} 28. Ra8 {[%emt 0:04:33]} Rg8+ {[%emt 0:01:22]} 29. Kf2 {[%emt 0:01:17]} exd4 {[%emt 0:00:59]} 30. exd4 {[%emt 0:00:10]} Be6 {[%emt 0:00:18]} 31. Rxg8 {[%emt 0:10:25]} Bxg8 {[%emt 0:00:05]} 32. a5 {[%emt 0:01:04]} Kc6 {[%emt 0:00:07]} 33. a6 {[%emt 0:01:56]} Kb6 {[%emt 0:00:04]} 34. Nd7+ {[%emt 0:02:26]} Kxa6 {[%emt 0:00:04]} 35. Nxf6 {[%emt 0:00:09]} Bf7 {[%emt 0:00:06]} 36. f5 {[%emt 0:06:07]} c5 {[%emt 0:01:34]} 37. dxc5 {[%emt 0:03:01]} Kb5 {[%emt 0:00:07]} 38. Nd7 {[%emt 0:00:31]} Be8 {[%emt 0:00:09]} 39. f6 {[%emt 0:00:30]} d4 {[%emt 0:11:24]} 40. Kf3 {[%emt 0:07:27]} Kc6 {[%emt 0:00:24]} 41. Ne5+ {[%emt 0:10:26]} Kxc5 {[%emt 0:00:06]} 42. Ke4 {[%emt 0:02:56]} d3 {[%emt 0:14:47]} 43. Nxd3+ {[%emt 0:01:00]} Kd6 {[%emt 0:00:02]} 44. Kf5 {[%emt 0:00:39]} Bf7 {[%emt 0:00:13]} 45. Nf2 {[%emt 0:01:40]} Ba2 {[%emt 0:04:36]} 46. Ne4+ {[%emt 0:01:43]} Kd7 {[%emt 0:00:03]} 47. Kg6 {[%emt 0:00:41]} Ke8 {[%emt 0:00:17]} 48. Kg7 {[%emt 0:00:44]} 1-0